[Event "Titled Tuesday Blitz November 2 2021"]
[White "Volkov, Maksim"]
[Black "Khanin, Semen"]
[WhiteFideId "54123070"]
[BlackFideId "4111990"]
[WhiteElo "2113"]
[BlackElo "2436"]
[Result "0-1"]
[Round "03"]
[TimeControl "180+1"]
[Date "2021.11.02"]
[WhiteClock "0:00:03"]
[BlackClock "0:00:09"]

1. d4 {[%clk 0:02:59]}  g6 {[%clk 0:03:00]} 2. Nf3 {[%clk 0:02:57]}  Bg7 {[%clk 0:03:00]} 3. e4 {[%clk 0:02:55]}  d6 {[%clk 0:03:00]} 4. Nc3 {[%clk 0:02:51]}  a6 {[%clk 0:02:57]} 5. a4 {[%clk 0:02:50]}  Nf6 {[%clk 0:02:56]} 6. h3 {[%clk 0:02:48]}  O-O {[%clk 0:02:56]} 7. Be3 {[%clk 0:02:48]}  Nc6 {[%clk 0:02:55]} 8. Be2 {[%clk 0:02:43]}  b6 {[%clk 0:02:52]} 9. O-O {[%clk 0:02:42]}  e6 {[%clk 0:02:52]} 10. Re1 {[%clk 0:02:38]}  Bb7 {[%clk 0:02:52]} 11. Bf1 {[%clk 0:02:35]}  h6 {[%clk 0:02:50]} 12. Nd2 {[%clk 0:02:13]}  Kh7 {[%clk 0:02:44]} 13. f3 {[%clk 0:02:01]}  Nh5 {[%clk 0:02:40]} 14. Ne2 {[%clk 0:01:58]}  f5 {[%clk 0:02:38]} 15. d5 {[%clk 0:01:48]}  exd5 {[%clk 0:02:37]} 16. exd5 {[%clk 0:01:48]}  Ne7 {[%clk 0:02:35]} 17. c4 {[%clk 0:01:44]}  f4 {[%clk 0:02:34]} 18. Bd4 {[%clk 0:01:42]}  Nf5 {[%clk 0:02:33]} 19. Bxg7 {[%clk 0:01:42]}  Kxg7 {[%clk 0:02:33]} 20. Ne4 {[%clk 0:01:41]}  Qd7 {[%clk 0:02:23]} 21. Nd4 {[%clk 0:01:34]}  Nxd4 {[%clk 0:02:19]} 22. Qxd4+ {[%clk 0:01:34]}  Kh7 {[%clk 0:02:20]} 23. b4 {[%clk 0:01:30]}  Rae8 {[%clk 0:02:20]} 24. a5 {[%clk 0:01:26]}  bxa5 {[%clk 0:02:03]} 25. Rxa5 {[%clk 0:01:25]}  Qg7 {[%clk 0:02:03]} 26. Qxg7+ {[%clk 0:01:20]}  Kxg7 {[%clk 0:02:04]} 27. Kf2 {[%clk 0:01:17]}  Nf6 {[%clk 0:02:02]} 28. Bd3 {[%clk 0:01:16]}  Re7 {[%clk 0:01:49]} 29. Rd1 {[%clk 0:01:12]}  Rfe8 {[%clk 0:01:48]} 30. Nxf6 {[%clk 0:01:10]}  Kxf6 {[%clk 0:01:48]} 31. Be4 {[%clk 0:01:10]}  g5 {[%clk 0:01:24]} 32. c5 {[%clk 0:01:07]}  h5 {[%clk 0:01:24]} 33. Rc1 {[%clk 0:00:55]}  g4 {[%clk 0:01:22]} 34. hxg4 {[%clk 0:00:53]}  hxg4 {[%clk 0:01:22]} 35. cxd6 {[%clk 0:00:46]}  cxd6 {[%clk 0:01:22]} 36. b5 {[%clk 0:00:47]}  axb5 {[%clk 0:01:18]} 37. Rxb5 {[%clk 0:00:48]}  g3+ {[%clk 0:01:10]} 38. Ke1 {[%clk 0:00:46]}  Rxe4+ {[%clk 0:01:07]} 39. fxe4 {[%clk 0:00:46]}  Rxe4+ {[%clk 0:01:07]} 40. Kd2 {[%clk 0:00:46]}  Ba8 {[%clk 0:00:47]} 41. Rc8 {[%clk 0:00:38]}  Ra4 {[%clk 0:00:47]} 42. Ke2 {[%clk 0:00:29]}  Ke5 {[%clk 0:00:43]} 43. Re8+ {[%clk 0:00:28]}  Kd4 {[%clk 0:00:43]} 44. Rd8 {[%clk 0:00:25]}  Ra2+ {[%clk 0:00:42]} 45. Kf3 {[%clk 0:00:25]}  Rf2+ {[%clk 0:00:39]} 46. Kg4 {[%clk 0:00:25]}  Kc4 {[%clk 0:00:30]} 47. Ra5 {[%clk 0:00:21]}  Bxd5 {[%clk 0:00:21]} 48. Rxd6 {[%clk 0:00:20]}  Bxg2 {[%clk 0:00:20]} 49. Ra4+ {[%clk 0:00:20]}  Kc5 {[%clk 0:00:20]} 50. Rf6 {[%clk 0:00:15]}  Bf3+ {[%clk 0:00:16]} 51. Kxf4 {[%clk 0:00:11]}  g2 {[%clk 0:00:16]} 52. Rg6 {[%clk 0:00:05]}  Bh5+ {[%clk 0:00:09]} 53. Ke3 {[%clk 0:00:05]}  Re2+ {[%clk 0:00:09]} 54. Kd3 {[%clk 0:00:05]}  Bxg6+ {[%clk 0:00:09]} 55. Kxe2 {[%clk 0:00:04]}  g1=Q {[%clk 0:00:10]} 56. Ra5+ {[%clk 0:00:04]}  Kb4 {[%clk 0:00:10]} 57. Re5 {[%clk 0:00:03]}  Qh2+ {[%clk 0:00:10]} 58. Ke3 {[%clk 0:00:03]}  Qxe5+ {[%clk 0:00:10]} 59. Kf2 {[%clk 0:00:03]}  Kc4 {[%clk 0:00:09]} 0-1


[Site "https://www.chess.com"]

[Event "Titled Tuesday Blitz November 2 2021"]
[White "Zaragatski, Ilja"]
[Black "Sorokin, Aleksey"]
[WhiteFideId "4655192"]
[BlackFideId "24176460"]
[WhiteElo "2460"]
[BlackElo "2476"]
[Result "0-1"]
[Round "03"]
[TimeControl "180+1"]
[Date "2021.11.02"]
[WhiteClock "0:00:02"]
[BlackClock "0:01:15"]

1. d4 {[%clk 0:03:00]}  Nf6 {[%clk 0:02:58]} 2. Nc3 {[%clk 0:03:01]}  d5 {[%clk 0:02:56]} 3. Bf4 {[%clk 0:03:00]}  a6 {[%clk 0:02:55]} 4. e3 {[%clk 0:03:00]}  e6 {[%clk 0:02:55]} 5. g4 {[%clk 0:02:59]}  c5 {[%clk 0:02:51]} 6. g5 {[%clk 0:02:58]}  Nfd7 {[%clk 0:02:51]} 7. Nf3 {[%clk 0:02:57]}  Nc6 {[%clk 0:02:51]} 8. Ne2 {[%clk 0:02:52]}  b5 {[%clk 0:02:49]} 9. c3 {[%clk 0:02:51]}  b4 {[%clk 0:02:49]} 10. c4 {[%clk 0:02:22]}  Nb6 {[%clk 0:02:39]} 11. dxc5 {[%clk 0:02:09]}  Bxc5 {[%clk 0:02:33]} 12. Ned4 {[%clk 0:02:08]}  Bb7 {[%clk 0:02:28]} 13. cxd5 {[%clk 0:02:02]}  Nxd5 {[%clk 0:02:21]} 14. Nxc6 {[%clk 0:01:49]}  Bxc6 {[%clk 0:02:20]} 15. Be5 {[%clk 0:01:50]}  Nxe3 {[%clk 0:02:08]} 16. Qxd8+ {[%clk 0:00:46]}  Rxd8 {[%clk 0:02:07]} 17. fxe3 {[%clk 0:00:46]}  Bxf3 {[%clk 0:02:06]} 18. Rg1 {[%clk 0:00:47]}  O-O {[%clk 0:01:51]} 19. Rg3 {[%clk 0:00:44]}  Be4 {[%clk 0:01:48]} 20. Bxa6 {[%clk 0:00:38]}  Rd5 {[%clk 0:01:47]} 21. Bf4 {[%clk 0:00:36]}  e5 {[%clk 0:01:44]} 22. Bb7 {[%clk 0:00:23]}  exf4 {[%clk 0:01:43]} 23. Bxd5 {[%clk 0:00:22]}  fxg3 {[%clk 0:01:36]} 24. Bxe4 {[%clk 0:00:16]}  Re8 {[%clk 0:01:36]} 25. Bc6 {[%clk 0:00:08]}  Rxe3+ {[%clk 0:01:31]} 26. Kf1 {[%clk 0:00:08]}  gxh2 {[%clk 0:01:27]} 27. Re1 {[%clk 0:00:05]}  Rxe1+ {[%clk 0:01:23]} 28. Kxe1 {[%clk 0:00:06]}  Bd4 {[%clk 0:01:19]} 29. a3 {[%clk 0:00:04]}  b3 {[%clk 0:01:18]} 30. a4 {[%clk 0:00:02]}  Bxb2 {[%clk 0:01:18]} 31. Kd1 {[%clk 0:00:02]}  Bc3 {[%clk 0:01:15]} 0-1


[Site "https://www.chess.com"]

[Event "Titled Tuesday Blitz November 2 2021"]
[White "Abdrlauf, Elham"]
[Black "Klyashtorny, Vladislav"]
[WhiteFideId "1533533"]
[BlackFideId "4170938"]
[WhiteElo "2362"]
[BlackElo "2416"]
[Result "1-0"]
[Round "04"]
[TimeControl "180+1"]
[Date "2021.11.02"]
[WhiteClock "0:01:01"]
[BlackClock "0:00:05"]

1. e4 {[%clk 0:03:00]}  e5 {[%clk 0:02:47]} 2. Nc3 {[%clk 0:03:00]}  Nf6 {[%clk 0:02:46]} 3. d4 {[%clk 0:03:00]}  exd4 {[%clk 0:02:45]} 4. Qxd4 {[%clk 0:03:01]}  Nc6 {[%clk 0:02:45]} 5. Qd3 {[%clk 0:03:01]}  Bb4 {[%clk 0:02:45]} 6. Ne2 {[%clk 0:03:00]}  O-O {[%clk 0:02:44]} 7. Bg5 {[%clk 0:03:01]}  h6 {[%clk 0:02:44]} 8. Bh4 {[%clk 0:03:01]}  g5 {[%clk 0:02:42]} 9. Bg3 {[%clk 0:03:02]}  d5 {[%clk 0:02:42]} 10. O-O-O {[%clk 0:03:02]}  dxe4 {[%clk 0:02:34]} 11. Nxe4 {[%clk 0:03:02]}  Nxe4 {[%clk 0:02:07]} 12. Qxe4 {[%clk 0:03:01]}  Bd6 {[%clk 0:02:07]} 13. Bxd6 {[%clk 0:03:00]}  cxd6 {[%clk 0:02:07]} 14. h4 {[%clk 0:02:59]}  Re8 {[%clk 0:02:05]} 15. Qd3 {[%clk 0:02:56]}  Nb4 {[%clk 0:02:03]} 16. Qb3 {[%clk 0:02:54]}  a5 {[%clk 0:01:57]} 17. Nd4 {[%clk 0:02:53]}  Qf6 {[%clk 0:01:52]} 18. Bb5 {[%clk 0:02:41]}  Re4 {[%clk 0:01:45]} 19. c3 {[%clk 0:02:05]}  Qf4+ {[%clk 0:01:37]} 20. Kb1 {[%clk 0:02:03]}  Rxd4 {[%clk 0:01:32]} 21. Rxd4 {[%clk 0:01:57]}  Bf5+ {[%clk 0:01:31]} 22. Ka1 {[%clk 0:01:54]}  Qxd4 {[%clk 0:00:52]} 23. cxd4 {[%clk 0:01:51]}  Nc2+ {[%clk 0:00:52]} 24. Qxc2 {[%clk 0:01:41]}  Bxc2 {[%clk 0:00:53]} 25. hxg5 {[%clk 0:01:42]}  hxg5 {[%clk 0:00:53]} 26. Rc1 {[%clk 0:01:36]}  Be4 {[%clk 0:00:52]} 27. f3 {[%clk 0:01:36]}  Bd5 {[%clk 0:00:52]} 28. Rc7 {[%clk 0:01:36]}  Rd8 {[%clk 0:00:43]} 29. b3 {[%clk 0:01:34]}  Kg7 {[%clk 0:00:25]} 30. Bc4 {[%clk 0:01:29]}  Bxc4 {[%clk 0:00:24]} 31. bxc4 {[%clk 0:01:30]}  Re8 {[%clk 0:00:24]} 32. Rxb7 {[%clk 0:01:28]}  Re2 {[%clk 0:00:22]} 33. Rb2 {[%clk 0:01:22]}  Re1+ {[%clk 0:00:20]} 34. Rb1 {[%clk 0:01:23]}  Re2 {[%clk 0:00:20]} 35. g4 {[%clk 0:01:16]}  Rc2 {[%clk 0:00:18]} 36. Rb5 {[%clk 0:01:12]}  Kg6 {[%clk 0:00:14]} 37. c5 {[%clk 0:01:06]}  dxc5 {[%clk 0:00:12]} 38. Rxc5 {[%clk 0:01:07]}  Rd2 {[%clk 0:00:11]} 39. Rxa5 {[%clk 0:01:06]}  Rxd4 {[%clk 0:00:11]} 40. Rf5 {[%clk 0:01:06]}  Rd2 {[%clk 0:00:11]} 41. a4 {[%clk 0:01:05]}  f6 {[%clk 0:00:09]} 42. Kb1 {[%clk 0:01:02]}  Rf2 {[%clk 0:00:08]} 43. a5 {[%clk 0:01:00]}  Re2 {[%clk 0:00:08]} 44. a6 {[%clk 0:00:59]}  Re6 {[%clk 0:00:04]} 45. Ra5 {[%clk 0:00:59]}  Rb6+ {[%clk 0:00:04]} 46. Kc2 {[%clk 0:01:00]}  Rb8 {[%clk 0:00:05]} 47. a7 {[%clk 0:01:00]}  Ra8 {[%clk 0:00:05]} 48. Kd3 {[%clk 0:01:01]} 1-0


[Site "https://www.chess.com"]

[Event "Titled Tuesday Blitz November 2 2021"]
[White "Andreikin, Dmitry"]
[Black "Nyudleev, Dolgan"]
[WhiteFideId "4158814"]
[BlackFideId "4198360"]
[WhiteElo "2736"]
[BlackElo "2354"]
[Result "1-0"]
[Round "04"]
[TimeControl "180+1"]
[Date "2021.11.02"]
[WhiteClock "0:00:20"]
[BlackClock "0:00:01"]

1. d4 {[%clk 0:03:00]}  d5 {[%clk 0:02:59]} 2. c4 {[%clk 0:03:00]}  c6 {[%clk 0:02:59]} 3. cxd5 {[%clk 0:02:59]}  cxd5 {[%clk 0:02:59]} 4. Nc3 {[%clk 0:02:58]}  Nf6 {[%clk 0:02:59]} 5. Bf4 {[%clk 0:02:58]}  e6 {[%clk 0:02:58]} 6. e3 {[%clk 0:02:56]}  Bd6 {[%clk 0:02:58]} 7. Bg3 {[%clk 0:02:55]}  Nc6 {[%clk 0:02:58]} 8. Bd3 {[%clk 0:02:54]}  e5 {[%clk 0:02:54]} 9. dxe5 {[%clk 0:02:53]}  Nxe5 {[%clk 0:02:54]} 10. Bb5+ {[%clk 0:02:44]}  Nc6 {[%clk 0:02:54]} 11. Nf3 {[%clk 0:02:41]}  a6 {[%clk 0:02:52]} 12. Bxc6+ {[%clk 0:02:34]}  bxc6 {[%clk 0:02:52]} 13. Qa4 {[%clk 0:02:34]}  Bxg3 {[%clk 0:02:39]} 14. hxg3 {[%clk 0:02:33]}  Qd6 {[%clk 0:02:39]} 15. Qf4 {[%clk 0:02:13]}  Qe7 {[%clk 0:02:34]} 16. Nd4 {[%clk 0:02:07]}  Bd7 {[%clk 0:02:32]} 17. O-O-O {[%clk 0:02:00]}  O-O {[%clk 0:02:22]} 18. Nf5 {[%clk 0:01:58]}  Bxf5 {[%clk 0:02:20]} 19. Qxf5 {[%clk 0:01:58]}  g6 {[%clk 0:02:19]} 20. Qg5 {[%clk 0:01:56]}  Rfe8 {[%clk 0:02:12]} 21. Rd4 {[%clk 0:01:53]}  Ne4 {[%clk 0:02:02]} 22. Nxe4 {[%clk 0:01:41]}  dxe4 {[%clk 0:02:01]} 23. Qxe7 {[%clk 0:01:15]}  Rxe7 {[%clk 0:02:00]} 24. Rd6 {[%clk 0:01:13]}  Rc8 {[%clk 0:01:52]} 25. Kd2 {[%clk 0:01:13]}  Kg7 {[%clk 0:01:51]} 26. Rc1 {[%clk 0:01:12]}  Rec7 {[%clk 0:01:40]} 27. g4 {[%clk 0:01:09]}  h6 {[%clk 0:01:35]} 28. Rc4 {[%clk 0:01:08]}  Rb8 {[%clk 0:00:50]} 29. Kc3 {[%clk 0:01:01]}  Rcb7 {[%clk 0:00:45]} 30. b3 {[%clk 0:01:01]}  Rb5 {[%clk 0:00:45]} 31. Rdxc6 {[%clk 0:00:50]}  a5 {[%clk 0:00:43]} 32. Rxe4 {[%clk 0:00:49]}  h5 {[%clk 0:00:43]} 33. Rc7 {[%clk 0:00:42]}  hxg4 {[%clk 0:00:35]} 34. Rxg4 {[%clk 0:00:43]}  Rf5 {[%clk 0:00:30]} 35. Rf4 {[%clk 0:00:42]}  Rbb5 {[%clk 0:00:29]} 36. Rxf5 {[%clk 0:00:41]}  Rxf5 {[%clk 0:00:29]} 37. f4 {[%clk 0:00:39]}  Rh5 {[%clk 0:00:24]} 38. g4 {[%clk 0:00:39]}  Rh3 {[%clk 0:00:22]} 39. Kd3 {[%clk 0:00:37]}  Rh2 {[%clk 0:00:20]} 40. a4 {[%clk 0:00:37]}  Rb2 {[%clk 0:00:19]} 41. Rb7 {[%clk 0:00:36]}  Kf6 {[%clk 0:00:17]} 42. g5+ {[%clk 0:00:36]}  Ke6 {[%clk 0:00:17]} 43. Rb6+ {[%clk 0:00:36]}  Ke7 {[%clk 0:00:17]} 44. Rb5 {[%clk 0:00:35]}  Ke6 {[%clk 0:00:17]} 45. Kc3 {[%clk 0:00:33]}  Re2 {[%clk 0:00:17]} 46. Kd3 {[%clk 0:00:33]}  Rb2 {[%clk 0:00:16]} 47. Kc4 {[%clk 0:00:33]}  Rc2+ {[%clk 0:00:13]} 48. Kd4 {[%clk 0:00:33]}  Rb2 {[%clk 0:00:13]} 49. Kc5 {[%clk 0:00:33]}  Kf5 {[%clk 0:00:10]} 50. Rxa5 {[%clk 0:00:29]}  Ke4 {[%clk 0:00:10]} 51. Rb5 {[%clk 0:00:25]}  Kxe3 {[%clk 0:00:09]} 52. Rb4 {[%clk 0:00:26]}  Kd3 {[%clk 0:00:05]} 53. a5 {[%clk 0:00:25]}  Kc3 {[%clk 0:00:03]} 54. a6 {[%clk 0:00:23]}  Re2 {[%clk 0:00:03]} 55. a7 {[%clk 0:00:20]}  Re8 {[%clk 0:00:01]} 56. Rb8 {[%clk 0:00:20]} 1-0


[Site "https://www.chess.com"]

[Event "Titled Tuesday Blitz November 2 2021"]
[White "Babazada, Khazar"]
[Black "Karttunen, Mika"]
[WhiteFideId "13413554"]
[BlackFideId "502081"]
[WhiteElo "2302"]
[BlackElo "2343"]
[Result "1-0"]
[Round "04"]
[TimeControl "180+1"]
[Date "2021.11.02"]
[WhiteClock "0:01:33"]
[BlackClock "0:00:04"]

1. e4 {[%clk 0:03:00]}  c5 {[%clk 0:02:59]} 2. Nc3 {[%clk 0:02:59]}  d6 {[%clk 0:02:58]} 3. g3 {[%clk 0:02:58]}  g6 {[%clk 0:02:56]} 4. Bg2 {[%clk 0:02:59]}  Bg7 {[%clk 0:02:56]} 5. Nge2 {[%clk 0:03:00]}  Nf6 {[%clk 0:02:56]} 6. O-O {[%clk 0:02:59]}  O-O {[%clk 0:02:56]} 7. a3 {[%clk 0:03:00]}  Nc6 {[%clk 0:02:55]} 8. Rb1 {[%clk 0:03:00]}  a5 {[%clk 0:02:54]} 9. d3 {[%clk 0:02:59]}  Bd7 {[%clk 0:02:44]} 10. Be3 {[%clk 0:02:59]}  Qb6 {[%clk 0:02:31]} 11. h3 {[%clk 0:02:57]}  Nd4 {[%clk 0:02:21]} 12. Qd2 {[%clk 0:02:47]}  Rfc8 {[%clk 0:02:17]} 13. b4 {[%clk 0:02:35]}  e5 {[%clk 0:01:56]} 14. bxc5 {[%clk 0:02:34]}  Qxc5 {[%clk 0:01:54]} 15. Rxb7 {[%clk 0:02:31]}  Nxe2+ {[%clk 0:01:51]} 16. Nxe2 {[%clk 0:02:29]}  Qxc2 {[%clk 0:01:51]} 17. Rfb1 {[%clk 0:02:24]}  Qxd2 {[%clk 0:01:48]} 18. Bxd2 {[%clk 0:02:25]}  Rc2 {[%clk 0:01:47]} 19. R7b2 {[%clk 0:02:17]}  Rac8 {[%clk 0:01:17]} 20. Bxa5 {[%clk 0:02:12]}  h5 {[%clk 0:01:04]} 21. Bb4 {[%clk 0:02:10]}  Ne8 {[%clk 0:00:35]} 22. Bf1 {[%clk 0:01:48]}  f5 {[%clk 0:00:33]} 23. Rxc2 {[%clk 0:01:47]}  Rxc2 {[%clk 0:00:32]} 24. Rc1 {[%clk 0:01:47]}  Rxc1 {[%clk 0:00:20]} 25. Nxc1 {[%clk 0:01:48]}  Ba4 {[%clk 0:00:17]} 26. Na2 {[%clk 0:01:47]}  Kf7 {[%clk 0:00:17]} 27. Nc3 {[%clk 0:01:46]}  Bc6 {[%clk 0:00:17]} 28. a4 {[%clk 0:01:46]}  Ke6 {[%clk 0:00:16]} 29. Be2 {[%clk 0:01:45]}  Nc7 {[%clk 0:00:16]} 30. Bd1 {[%clk 0:01:46]}  Na6 {[%clk 0:00:16]} 31. Ba3 {[%clk 0:01:45]}  fxe4 {[%clk 0:00:11]} 32. dxe4 {[%clk 0:01:45]}  Bh6 {[%clk 0:00:09]} 33. Bb3+ {[%clk 0:01:44]}  Kd7 {[%clk 0:00:09]} 34. Bf7 {[%clk 0:01:41]}  Bd2 {[%clk 0:00:08]} 35. Nb5 {[%clk 0:01:40]}  Bxe4 {[%clk 0:00:07]} 36. Nxd6 {[%clk 0:01:40]}  Bc2 {[%clk 0:00:07]} 37. Nc4 {[%clk 0:01:35]}  Bh6 {[%clk 0:00:05]} 38. Bxg6 {[%clk 0:01:33]}  Bxa4 {[%clk 0:00:04]} 39. Nb6+ {[%clk 0:01:32]}  Ke6 {[%clk 0:00:04]} 40. Nxa4 {[%clk 0:01:33]} 1-0


[Site "https://www.chess.com"]

[Event "Titled Tuesday Blitz November 2 2021"]
[White "Bluebaum, Matthias"]
[Black "Gaehwiler, Gabriel"]
[WhiteFideId "24651516"]
[BlackFideId "1314530"]
[WhiteElo "2681"]
[BlackElo "2320"]
[Result "1-0"]
[Round "04"]
[TimeControl "180+1"]
[Date "2021.11.02"]
[WhiteClock "0:02:43"]
[BlackClock "0:00:29"]

1. d4 {[%clk 0:03:00]}  Nf6 {[%clk 0:02:59]} 2. Nf3 {[%clk 0:02:59]}  g6 {[%clk 0:02:59]} 3. Nc3 {[%clk 0:02:59]}  d5 {[%clk 0:02:57]} 4. Bf4 {[%clk 0:03:00]}  Bg7 {[%clk 0:02:57]} 5. e3 {[%clk 0:03:00]}  c6 {[%clk 0:02:56]} 6. h3 {[%clk 0:03:00]}  O-O {[%clk 0:02:53]} 7. Be2 {[%clk 0:03:00]}  Na6 {[%clk 0:02:48]} 8. O-O {[%clk 0:02:59]}  Nc7 {[%clk 0:02:48]} 9. a4 {[%clk 0:02:59]}  a5 {[%clk 0:02:47]} 10. Nb1 {[%clk 0:02:59]}  Ne6 {[%clk 0:02:47]} 11. Bh2 {[%clk 0:02:59]}  Ne4 {[%clk 0:02:38]} 12. c4 {[%clk 0:02:59]}  N6g5 {[%clk 0:02:30]} 13. Nxg5 {[%clk 0:02:57]}  Nxg5 {[%clk 0:02:31]} 14. Nc3 {[%clk 0:02:57]}  Ne4 {[%clk 0:02:12]} 15. cxd5 {[%clk 0:02:52]}  cxd5 {[%clk 0:01:28]} 16. Nxe4 {[%clk 0:02:51]}  dxe4 {[%clk 0:01:28]} 17. Qb3 {[%clk 0:02:52]}  b6 {[%clk 0:01:21]} 18. Rac1 {[%clk 0:02:50]}  Be6 {[%clk 0:01:19]} 19. Bc4 {[%clk 0:02:50]}  Bxc4 {[%clk 0:01:15]} 20. Rxc4 {[%clk 0:02:51]}  Qd5 {[%clk 0:01:08]} 21. Rfc1 {[%clk 0:02:51]}  f5 {[%clk 0:01:00]} 22. Qb5 {[%clk 0:02:49]}  Qxb5 {[%clk 0:00:58]} 23. axb5 {[%clk 0:02:50]}  Ra7 {[%clk 0:00:34]} 24. Rc6 {[%clk 0:02:49]}  Rf6 {[%clk 0:00:33]} 25. Rxf6 {[%clk 0:02:44]}  Bxf6 {[%clk 0:00:34]} 26. Rc6 {[%clk 0:02:44]}  Rb7 {[%clk 0:00:32]} 27. Bc7 {[%clk 0:02:44]}  Kf7 {[%clk 0:00:29]} 28. b3 {[%clk 0:02:43]} 1-0


[Site "https://www.chess.com"]

[Event "Titled Tuesday Blitz November 2 2021"]
[White "Bortnyk, Olexandr"]
[Black "Yuan, Qingyu"]
[WhiteFideId "14120828"]
[BlackFideId "8609772"]
[WhiteElo "2723"]
[BlackElo "2359"]
[Result "1-0"]
[Round "04"]
[TimeControl "180+1"]
[Date "2021.11.02"]
[WhiteClock "0:00:42"]
[BlackClock "0:00:02"]

1. e4 {[%clk 0:03:00]}  c6 {[%clk 0:02:59]} 2. d4 {[%clk 0:02:55]}  d5 {[%clk 0:02:59]} 3. Nc3 {[%clk 0:02:55]}  dxe4 {[%clk 0:02:59]} 4. Nxe4 {[%clk 0:02:56]}  Nf6 {[%clk 0:03:00]} 5. Nxf6+ {[%clk 0:02:57]}  exf6 {[%clk 0:03:00]} 6. c3 {[%clk 0:02:57]}  Bd6 {[%clk 0:02:58]} 7. Bd3 {[%clk 0:02:58]}  O-O {[%clk 0:02:58]} 8. Qc2 {[%clk 0:02:59]}  g6 {[%clk 0:02:35]} 9. Be3 {[%clk 0:02:54]}  Nd7 {[%clk 0:02:28]} 10. h4 {[%clk 0:02:52]}  Re8 {[%clk 0:02:24]} 11. h5 {[%clk 0:02:52]}  f5 {[%clk 0:02:19]} 12. hxg6 {[%clk 0:02:50]}  hxg6 {[%clk 0:02:13]} 13. O-O-O {[%clk 0:02:50]}  Nf6 {[%clk 0:02:05]} 14. Nf3 {[%clk 0:02:42]}  Ne4 {[%clk 0:01:52]} 15. Bxe4 {[%clk 0:02:32]}  Rxe4 {[%clk 0:01:49]} 16. d5 {[%clk 0:01:58]}  cxd5 {[%clk 0:01:42]} 17. Rxd5 {[%clk 0:01:38]}  Be6 {[%clk 0:01:37]} 18. Bd4 {[%clk 0:01:31]}  f6 {[%clk 0:01:14]} 19. Rxd6 {[%clk 0:00:59]}  Qxd6 {[%clk 0:01:10]} 20. Bxf6 {[%clk 0:01:00]}  Bc4 {[%clk 0:00:38]} 21. Rh8+ {[%clk 0:00:48]}  Kf7 {[%clk 0:00:37]} 22. Ng5+ {[%clk 0:00:49]}  Kxf6 {[%clk 0:00:37]} 23. Nxe4+ {[%clk 0:00:50]}  fxe4 {[%clk 0:00:36]} 24. Rxa8 {[%clk 0:00:51]}  Qh2 {[%clk 0:00:18]} 25. b3 {[%clk 0:00:44]}  Bd3 {[%clk 0:00:16]} 26. Qd2 {[%clk 0:00:44]}  a6 {[%clk 0:00:08]} 27. Rf8+ {[%clk 0:00:40]}  Kg7 {[%clk 0:00:06]} 28. Qf4 {[%clk 0:00:40]}  Qg1+ {[%clk 0:00:06]} 29. Kb2 {[%clk 0:00:40]}  Qb1+ {[%clk 0:00:04]} 30. Ka3 {[%clk 0:00:41]}  Qc2 {[%clk 0:00:03]} 31. Qf6+ {[%clk 0:00:41]}  Kh6 {[%clk 0:00:02]} 32. Rh8# {[%clk 0:00:42]} 1-0


[Site "https://www.chess.com"]

[Event "Titled Tuesday Blitz November 2 2021"]
[White "Cunjalo, Faris"]
[Black "Sviridov, Valery"]
[WhiteFideId "14410710"]
[BlackFideId "4120680"]
[WhiteElo "2234"]
[BlackElo "2454"]
[Result "1-0"]
[Round "04"]
[TimeControl "180+1"]
[Date "2021.11.02"]
[WhiteClock "0:00:05"]
[BlackClock "0:00:07"]

1. c4 {[%clk 0:03:00]}  g6 {[%clk 0:02:57]} 2. d4 {[%clk 0:02:58]}  Bg7 {[%clk 0:02:57]} 3. h4 {[%clk 0:02:58]}  d6 {[%clk 0:02:55]} 4. h5 {[%clk 0:02:57]}  e5 {[%clk 0:02:54]} 5. d5 {[%clk 0:02:43]}  g5 {[%clk 0:02:50]} 6. e4 {[%clk 0:02:40]}  h6 {[%clk 0:02:50]} 7. Nc3 {[%clk 0:02:39]}  a5 {[%clk 0:02:47]} 8. g4 {[%clk 0:02:36]}  Ne7 {[%clk 0:02:45]} 9. f3 {[%clk 0:02:31]}  O-O {[%clk 0:02:44]} 10. Bd3 {[%clk 0:02:30]}  c6 {[%clk 0:02:44]} 11. Be3 {[%clk 0:02:29]}  Na6 {[%clk 0:02:43]} 12. Nge2 {[%clk 0:02:29]}  cxd5 {[%clk 0:02:42]} 13. cxd5 {[%clk 0:02:29]}  Bd7 {[%clk 0:02:42]} 14. O-O {[%clk 0:02:25]}  Nb4 {[%clk 0:02:28]} 15. Rc1 {[%clk 0:02:23]}  b5 {[%clk 0:02:21]} 16. Bxb5 {[%clk 0:01:58]}  Nxa2 {[%clk 0:02:18]} 17. Ra1 {[%clk 0:01:57]}  Nb4 {[%clk 0:02:16]} 18. Bxd7 {[%clk 0:01:43]}  Qxd7 {[%clk 0:02:17]} 19. Qa4 {[%clk 0:01:43]}  Qb7 {[%clk 0:01:46]} 20. Rfd1 {[%clk 0:01:43]}  f5 {[%clk 0:01:41]} 21. gxf5 {[%clk 0:01:28]}  Nxf5 {[%clk 0:01:42]} 22. exf5 {[%clk 0:01:29]}  Rxf5 {[%clk 0:01:42]} 23. Rf1 {[%clk 0:01:22]}  Qf7 {[%clk 0:01:42]} 24. Ng3 {[%clk 0:00:58]}  Rxf3 {[%clk 0:01:40]} 25. Kg2 {[%clk 0:00:51]}  Rf8 {[%clk 0:01:37]} 26. Qd1 {[%clk 0:00:42]}  e4 {[%clk 0:01:35]} 27. Ncxe4 {[%clk 0:00:39]}  Rxf1 {[%clk 0:01:34]} 28. Qxf1 {[%clk 0:00:38]}  Nc2 {[%clk 0:01:34]} 29. Qxf7+ {[%clk 0:00:37]}  Rxf7 {[%clk 0:01:35]} 30. Rxa5 {[%clk 0:00:32]}  Nxe3+ {[%clk 0:01:34]} 31. Kh3 {[%clk 0:00:29]}  Be5 {[%clk 0:01:28]} 32. Ra6 {[%clk 0:00:25]}  Rf4 {[%clk 0:01:25]} 33. Kh2 {[%clk 0:00:22]}  Rh4+ {[%clk 0:01:17]} 34. Kg1 {[%clk 0:00:23]}  Nxd5 {[%clk 0:01:18]} 35. Nxd6 {[%clk 0:00:13]}  Nc7 {[%clk 0:00:42]} 36. Rc6 {[%clk 0:00:05]}  Bxg3 {[%clk 0:00:42]} 37. Nf5 {[%clk 0:00:06]}  Bh2+ {[%clk 0:00:12]} 38. Kg2 {[%clk 0:00:05]}  Rf4 {[%clk 0:00:12]} 39. Nxh6+ {[%clk 0:00:01]}  Kh7 {[%clk 0:00:12]} 40. Kxh2 {[%clk 0:00:02]}  Nd5 {[%clk 0:00:10]} 41. Kg3 {[%clk 0:00:02]}  Rb4 {[%clk 0:00:10]} 42. Ng4 {[%clk 0:00:02]}  Nf4 {[%clk 0:00:10]} 43. Rc7+ {[%clk 0:00:02]}  Kh8 {[%clk 0:00:09]} 44. Nf6 {[%clk 0:00:01]}  Nxh5+ {[%clk 0:00:07]} 45. Nxh5 {[%clk 0:00:02]}  Kg8 {[%clk 0:00:06]} 46. Nf6+ {[%clk 0:00:02]}  Kf8 {[%clk 0:00:06]} 47. Rc2 {[%clk 0:00:02]}  Kf7 {[%clk 0:00:06]} 48. Nd5 {[%clk 0:00:03]}  Rd4 {[%clk 0:00:05]} 49. Ne3 {[%clk 0:00:03]}  Kg6 {[%clk 0:00:05]} 50. Rc4 {[%clk 0:00:04]}  Rd3 {[%clk 0:00:06]} 51. Kf3 {[%clk 0:00:04]}  Rb3 {[%clk 0:00:06]} 52. Rc2 {[%clk 0:00:04]}  Kh5 {[%clk 0:00:06]} 53. Rh2+ {[%clk 0:00:04]}  Kg6 {[%clk 0:00:06]} 54. Ke4 {[%clk 0:00:05]}  Rb4+ {[%clk 0:00:07]} 55. Kd3 {[%clk 0:00:05]}  g4 {[%clk 0:00:07]} 56. Rg2 {[%clk 0:00:05]}  Kg5 {[%clk 0:00:07]} 57. Rxg4+ {[%clk 0:00:05]} 1-0


[Site "https://www.chess.com"]